[Event "European Women-ch 2023"]
[Site "Petrovac"]
[Date "2023.03.18"]
[Round "1.21"]
[White "Rudzinska, Michalina"]
[Black "Huseynova, Lala"]
[Result "1-0"]
[ECO "B92"]
[WhiteElo "2212"]
[BlackElo "1694"]
[Annotator "TA"]
[PlyCount "113"]
[EventDate "2023.03.15"]
[EventType "swiss"]
[EventCountry "MNE"]
[SourceTitle "playchess.com"]
[Source "ChessBase"]
[SourceQuality "1"]
[TimeControl "40/5400+30:1800+30"]

{[%evp 15,113,18,11,14,24,19,12,13,13,15,27,24,49,56,73,62,66,38,75,68,97,75,91,75,112,71,111,86,98,96,101,107,131,104,168,168,184,168,156,154,200,198,198,199,207,183,197,180,194,186,220,195,215,153,185,154,186,175,235,235,218,227,272,226,387,413,740,725,678,668,695,639,793,787,1008,951,1161,1135,1121,497,1041,743,3276,2649,2787,1933,6644,6341,5450,6432,5635,5594,29964,29964,7483,5122,5122,5122,29974,29973]} 1. e4 {[%emt 0:00:03]} c5 {[%emt 0:00:21]} 2. Nf3 {[%emt 0:00:10]} d6 {[%emt 0:00:08]} 3. d4 {[%emt 0:00:08]} cxd4 {[%emt 0:00:13]} 4. Nxd4 {[%emt 0:00:10]} Nf6 {[%emt 0:00:05]} 5. Nc3 {[%emt 0:00:09]} a6 {[%emt 0:00:09]} 6. Be2 {[%emt 0:00:11]} e5 {[%emt 0:01:03]} 7. Nb3 {[%emt 0:00:09]} Be7 {[%emt 0:00:40]} 8. O-O {[%emt 0:00:15]} Be6 {[%emt 0:00:23]} 9. Qd3 {[%emt 0:00:50] B92: Sicilian Najdorf: 6 Be2.} Nbd7 {[%emt 0:02:04]} 10. Nd5 {[%emt 0:03:01]} Bxd5 {[%emt 0:02:44]} 11. exd5 {[%emt 0:00:08] The position is equal.} O-O {[%emt 0:07:12]} 12. Bd2 {[%emt 0:01:38]} Rc8 {[%emt 0:05:13]} 13. c4 {[%emt 0:01:58]} Nc5 {[%emt 0:03:50]} 14. Nxc5 {[%emt 0:00:43] [#]} dxc5 $146 {[%emt 0:01:42]} ({Predecessor:} 14... Rxc5 15. b4 Rc8 16. Rac1 Nd7 17. Bg4 g6 18. Bxd7 Qxd7 19. Be3 f5 20. f3 Qa4 {1-0 Fishbein,A (2443)-Kraus,T (2477) Titled Tuesday intern op 08th Feb Late blitz 2022 (11)}) 15. Rfe1 {[%emt 0:11:54][%cal Bf1e1,Be1e3,Be3a3][%mdl 32]} Bd6 {[%emt 0:04:32]} 16. Bg5 {[%emt 0:02:04]} Re8 {[%emt 0:04:34]} 17. Bf3 {[%emt 0:04:20]} b6 {[%emt 0:09:08]} 18. Rad1 {[%emt 0:03:45] Black is weak on the light squares} Qe7 {[%emt 0:03:22]} 19. Re3 {[%emt 0:11:58] White is more active.} Rcd8 {[%emt 0:07:05]} 20. Qf5 {[%emt 0:04:41]} Qd7 {[%emt 0:09:37]} 21. Qxd7 {[%emt 0:02:27]} Rxd7 {[%emt 0:00:32]} 22. Bxf6 {[%emt 0:01:00]} gxf6 {[%emt 0:00:06]} 23. Be4 {[%emt 0:00:33]} Bf8 {[%emt 0:01:40]} 24. Ra3 {[%emt 0:04:19]} a5 {[%emt 0:02:41]} (24... b5 $16) 25. Rdd3 $18 {[%emt 0:05:27]} Bg7 {[%emt 0:05:03]} 26. Rdb3 {[%emt 0:08:45]} Rd6 {[%emt 0:04:27]} 27. Rb5 {[%emt 0:01:11]} Ra8 {[%emt 0:01:41]} (27... f5 $16 {keeps fighting.}) 28. Bf5 {[%emt 0:02:11]} Ra6 {[%emt 0:10:35]} 29. Rab3 {[%emt 0:01:46]} a4 {[%emt 0:00:59]} 30. Ra3 {[%emt 0:00:30]} Bh6 {[%emt 0:04:20]} 31. Bc2 {[%emt 0:06:37]} Bd2 {[%emt 0:03:51]} 32. Kf1 {[%emt 0:00:32]} (32. Bxa4 f5 33. Rbb3 Bb4 $16) 32... Kg7 {[%emt 0:03:26]} 33. Ke2 {[%emt 0:00:42]} (33. Rxa4 Rxa4 34. Bxa4 f5) (33. Bxa4 $6 f5 34. Ke2 Bg5) 33... Bg5 {[%emt 0:00:14]} 34. Kf3 {[%emt 0:07:56]} (34. Rxa4 Rxa4 35. Bxa4 f5) (34. Bxa4 f5 35. Bb3 Rxa3 36. bxa3 Rh6) 34... h5 {[%emt 0:00:49]} 35. Ke4 {[%emt 0:02:13]} (35. Rxa4 Rxa4 36. Bxa4 f5 $16) (35. Bxa4 f5 36. Ke2 e4 $16) 35... Kg6 {[%emt 0:00:43]} 36. g3 {[%emt 0:00:44]} (36. Bxa4 Bf4 37. Kf3 f5) 36... Rd8 {[%emt 0:00:54]} (36... Bh6 {was called for.} 37. f4 (37. Bxa4 Bg7 $16) (37. Rxa4 Rxa4 38. Bxa4 Bg7 $18) 37... f5+ 38. Kxe5 Rf6) 37. Rxa4 {[%emt 0:01:09]} ({Don't do} 37. Bxa4 $6 Bc1 38. Bd1 f5+ 39. Kf3 Rxa3+ 40. bxa3 Rb8) 37... Rxa4 {[%emt 0:00:53]} 38. Bxa4 {[%emt 0:00:05][%mdl 4096] Endgame KRB-KRB} Rd6 {[%emt 0:01:41]} 39. Rb3 {[%emt 0:01:43] aiming for Bc6.} Bh6 $2 {[%emt 0:00:37]} (39... f5+ 40. Kxe5 Be7) 40. Bc6 {[%emt 0:00:00]} Bg7 {[%emt 0:00:00]} (40... f5+ $142 41. Kxe5 Bf8 42. Rxb6 Rf6) 41. Rxb6 {[%emt 0:02:20]} f5+ {[%emt 0:00:28]} 42. Ke3 {[%emt 0:00:40]} f4+ {[%emt 0:01:05]} 43. Ke2 {[%emt 0:03:01]} fxg3 {[%emt 0:00:51]} 44. hxg3 {[%emt 0:00:11]} e4 {[%emt 0:01:22]} 45. a4 {[%emt 0:00:35][%cal Ba2a4,Ba4a5,Ba5b6,Bb6b7][%mdl 32]} Bd4 {[%emt 0:00:00]} 46. a5 {[%emt 0:00:58]} Rf6 {[%emt 0:00:00]} 47. Be8 {[%emt 0:00:45]} (47. a6 $142) 47... Rxb6 {[%emt 0:00:42]} (47... Be5 $142 48. Bc6 Bc7) 48. axb6 {[%emt 0:00:05] [#] Intending d6 and mate. KB-KB} Kf6 {[%emt 0:00:58]} 49. b7 {[%emt 0:04:31]} Be5 {[%emt 0:00:09]} 50. Ke3 {[%emt 0:00:18]} Ke7 {[%emt 0:00:23]} 51. Kxe4 {[%emt 0:00:08]} Bb8 {[%emt 0:00:14]} 52. Ba4 {[%emt 0:00:14]} Kf6 {[%emt 0:00:08]} 53. Bd1 {[%emt 0:00:20]} Kg5 {[%emt 0:00:10] [#]} 54. d6 $1 {[%emt 0:00:38]} Bxd6 {[%emt 0:00:02]} 55. Kd5 {[%emt 0:00:05]} Bb8 {[%emt 0:00:03]} 56. Kxc5 {[%emt 0:00:15]} Kf6 {[%emt 0:00:02]} 57. Bxh5 {[%emt 0:00:09] Weighted Error Value: White=0.25 (precise) /Black=0.29 (precise)} 1-0

[Event "European Women-ch 2023"]
[Site "Petrovac"]
[Date "2023.03.18"]
[Round "1.22"]
[White "Aydin, Gulenay"]
[Black "Daulyte-Cornette, Deimante"]
[Result "1/2-1/2"]
[ECO "C47"]
[WhiteElo "2039"]
[BlackElo "2344"]
[Annotator "TA"]
[PlyCount "59"]
[EventDate "2023.03.15"]
[EventType "swiss"]
[EventCountry "MNE"]
[SourceTitle "playchess.com"]
[Source "ChessBase"]
[SourceQuality "1"]
[TimeControl "40/5400+30:1800+30"]

{[%evp 11,59,28,38,33,38,38,38,43,37,27,25,25,47,47,37,48,47,45,59,40,41,8,20,6,6,6,19,20,18,8,19,15,16,17,18,17,17,0,0,0,0,0,0,0,0,0,0,0,0,0]} 1. e4 {[%emt 0:00:02]} e5 {[%emt 0:00:09]} 2. Nf3 {[%emt 0:00:18]} Nc6 {[%emt 0:00:06]} 3. Nc3 {[%emt 0:00:15]} Nf6 {[%emt 0:00:10]} 4. d4 {[%emt 0:00:57]} exd4 {[%emt 0:00:07]} 5. Nxd4 {[%emt 0:00:05]} Bc5 {[%emt 0:00:11]} 6. Be3 {[%emt 0:00:46]} Bb6 {[%emt 0:00:12]} 7. Qd2 {[%emt 0:04:18] C47: Scotch Four Knights and Four Knights with 4 g3.} O-O {[%emt 0:01:00]} 8. O-O-O {[%emt 0:02:16]} Re8 {[%emt 0:01:12]} 9. f3 {[%emt 0:02:28] White is slightly better.} d5 {[%emt 0:01:33]} 10. exd5 {[%emt 0:04:08]} Nxd5 {[%emt 0:00:38]} 11. Bg5 {[%emt 0:02:18]} Nde7 {[%emt 0:35:24][%cal Rd8d4]} 12. Nxc6 {[%emt 0:17:43]} Qxd2+ {[%emt 0:00:07]} 13. Bxd2 {[%emt 0:00:05]} Nxc6 {[%emt 0:02:27]} 14. Nd5 {[%emt 0:07:50] [#]} Bf5 $146 {[%emt 0:01:06]} ({Predecessor:} 14... Be6 15. Nxb6 axb6 16. a3 Ne7 17. Bd3 c6 18. Rhe1 b5 19. Re2 Nd5 20. Rde1 Red8 {1-0 Van Foreest,J (2461)-Ernst,S (2554) Dieren op 2014 (6)}) 15. Bb5 {[%emt 0:05:07]} a6 {[%emt 0:07:16]} 16. Bxc6 {[%emt 0:02:43]} bxc6 {[%emt 0:00:05] The position is equal.} 17. Nxb6 {[%emt 0:20:39]} cxb6 {[%emt 0:00:07]} 18. Rhe1 {[%emt 0:00:05]} Be6 {[%emt 0:03:37]} 19. Be3 {[%emt 0:03:40]} b5 {[%emt 0:00:18]} 20. Bc5 {[%emt 0:01:47]} a5 {[%emt 0:00:41]} 21. b3 {[%emt 0:01:48]} a4 {[%emt 0:02:48]} 22. Kb2 {[%emt 0:02:10]} h6 {[%emt 0:03:57]} 23. Rd4 {[%emt 0:09:10]} axb3 {[%emt 0:03:34]} 24. axb3 {[%emt 0:00:13]} Bd5 {[%emt 0:03:18]} 25. Rdd1 {[%emt 0:00:41]} Kh7 {[%emt 0:00:52]} 26. Kc3 {[%emt 0:01:20]} Kg6 {[%emt 0:00:40]} 27. Bf2 {[%emt 0:02:58]} h5 {[%emt 0:03:53]} 28. Rxe8 {[%emt 0:02:24]} Rxe8 {[%emt 0:00:06]} 29. Re1 {[%emt 0:00:04]} Rxe1 {[%emt 0:02:20]} 30. Bxe1 {[%emt 0:00:02] Weighted Error Value: White=0.04 (flawless) /Black=0.04 (flawless)} 1/2-1/2

[Event "European Women-ch 2023"]
[Site "Petrovac"]
[Date "2023.03.18"]
[Round "1.23"]
[White "Heinemann, Josefine"]
[Black "Skvortsova, Alena"]
[Result "1-0"]
[ECO "C43"]
[WhiteElo "2343"]
[BlackElo "2032"]
[Annotator "TA"]
[PlyCount "49"]
[EventDate "2023.03.15"]
[EventType "swiss"]
[EventCountry "MNE"]
[SourceTitle "playchess.com"]
[Source "ChessBase"]
[SourceQuality "1"]
[TimeControl "40/5400+30:1800+30"]

{[%evp 12,49,0,0,0,0,0,0,0,-18,17,61,185,183,178,134,402,395,453,442,424,367,338,0,0,0,0,0,492,478,29992,29993,29993,29994,29995,29995,29995,29996,29998,29999]} 1. e4 {[%emt 0:00:03] Edouard,Romain} e5 {[%emt 0:00:06]} 2. Nf3 {[%emt 0:00:17]} Nf6 {[%emt 0:00:07]} 3. d4 {[%emt 0:01:47]} Nxe4 {[%emt 0:00:14]} 4. Bd3 {[%emt 0:00:27]} d5 {[%emt 0:00:32]} 5. Nxe5 {[%emt 0:00:38]} Nd7 {[%emt 0:01:06]} 6. Nc3 {[%emt 0:01:27]} Nxe5 {[%emt 0:03:52]} 7. dxe5 {[%emt 0:00:14]} Bb4 {[%emt 0:01:24] C43: Petroff Defence: 3 d4.} 8. O-O {[%emt 0:00:58]} Nxc3 {[%emt 0:05:31]} 9. bxc3 {[%emt 0:00:07]} Bxc3 {[%emt 0:00:43] The position is equal.} 10. Rb1 {[%emt 0:00:06]} Qh4 {[%emt 0:08:11]} (10... Bxe5 $2 11. Re1 $18) (10... O-O $5) 11. Ba3 {[%emt 0:09:12]} (11. Rb3 {simplifies} Ba5 12. Bb5+ c6 13. Qxd5 Qd8 14. Qxd8+ Bxd8 15. Bc4) 11... Bg4 {[%emt 0:22:14]} (11... a5 $14) 12. Bb5+ $18 {[%emt 0:08:10][%mdl 64] Discovered Attack} c6 {[%emt 0:02:32]} 13. Qxd5 {[%emt 0:05:16][%cal Ob5c6] [#] White wants to mate with Bxc6+!} cxb5 $146 {[%emt 0:26:34][%mdl 8192]} (13... Bd7 $16 {is a better defense.} 14. Qb3 cxb5 15. Qxc3 Rc8) ({Predecessor:} 13... Bd7 14. Qb3 Bxe5 15. g3 Qf6 16. Rfe1 Kd8 17. Bf1 b6 18. Rbd1 Kc7 19. Rxe5 Qxe5 20. Qxf7 {1-0 Paravyan,D (2629)-Beinoras,M (2355) Gibraltar Masters 18th 2020 (1)}) 14. Qxb7 {[%emt 0:07:54]} Rc8 {[%emt 0:02:29] [#]} 15. e6 $1 {[%emt 0:01:59]} Bxe6 {[%emt 0:05:16]} 16. Qxb5+ {[%emt 0:00:17]} Bd7 {[%emt 0:03:07]} 17. Qe2+ $40 {[%emt 0:01:08][%mdl 128] White is up to no good.} (17. Rbe1+ $18 Kd8 18. Rd1) 17... Kd8 $11 {[%emt 0:01:51] Hoping for ...Re8.} 18. Rfd1 {[%emt 0:00:47]} Re8 {[%emt 0:03:08]} 19. Qa6 {[%emt 0:08:26][%cal Od1d7] White threatens Rxd7+! and mate. The board is on fire.} Qg4 {[%emt 0:03:02][%mdl 8192]} (19... Bd4 $2 20. Qa5+ (20. Qd6 Qxf2+ 21. Kh1 Re6 $17) 20... Rc7 21. Rb8+ Bc8 22. Bd6 (22. g3 $2 Qf6 $19) 22... Qxf2+ 23. Kh1 Qxc2 24. Bxc7+ (24. Rxd4 $2 Qc1+) 24... Ke7 25. Re1+ (25. Rxd4 $2 Qc1+) 25... Be6 26. Bd8+ Kf8 27. Qb4+ Bc5 28. Qb5 $18) (19... Qh6 $1 $11 20. Qxa7 (20. Rxd7+ Kxd7 21. Rb7+ Rc7 $11) 20... Qc6) 20. h3 $18 {[%emt 0:02:05]} Qg6 {[%emt 0:04:28] [#]} (20... Qe6 $2 21. Rb7 (21. Qxa7 Qc6 $18) 21... Be5 22. Qxe6 (22. Rxa7 Bc7 $11) 22... Rxe6 23. Rdxd7+ Ke8 24. Rxf7) (20... Qf5 $18 21. g4 Qe6) 21. Rxd7+ $1 {[%emt 0:09:56][%mdl 576] Clearance. White mates.} Kxd7 {[%emt 0:00:06]} 22. Rd1+ {[%emt 0:00:03]} Kc7 {[%emt 0:00:54]} 23. Bd6+ {[%emt 0:00:11]} Kd8 {[%emt 0:01:49]} 24. Bc5+ {[%emt 0:00:15][%mdl 64] Discovered Attack} (24. Qxa7 $2 {perishes.} Re1+ 25. Rxe1 Qxd6 $19) 24... Kc7 {[%emt 0:01:57]} 25. Qxa7+ {[%emt 0:00:08] A superb game by Heinemann.   Weighted Error Value: White=0.31/Black=1.13} 1-0

[Event "European Women-ch 2023"]
[Site "Petrovac"]
[Date "2023.03.18"]
[Round "1.24"]
[White "Pirvulescu, Ekaterina"]
[Black "Mkrtchyan, Mariam"]
[Result "0-1"]
[ECO "C78"]
[WhiteElo "2032"]
[BlackElo "2343"]
[Annotator "TA"]
[PlyCount "88"]
[EventDate "2023.03.15"]
[EventType "swiss"]
[EventCountry "MNE"]
[SourceTitle "playchess.com"]
[Source "ChessBase"]
[SourceQuality "1"]
[TimeControl "40/5400+30:1800+30"]

{[%evp 22,88,33,43,38,14,28,14,17,-69,-16,-105,-110,-97,-31,-33,-43,-41,0,0,0,0,4,0,0,0,16,8,289,-158,-141,-154,-147,-150,-141,-135,-107,-115,-77,-203,-203,-185,-153,-316,-296,-433,-412,-484,-462,-598,-579,-1218,-846,-1151,-992,-29973,-29974,-29982,-29983,-29982,-29982,-29985,-29986,-29987,-29988,-29994,-29995,-29998,-29999]} 1. e4 {[%emt 0:00:02]} e5 {[%emt 0:00:08]} 2. Nf3 {[%emt 0:00:04]} Nc6 {[%emt 0:00:10]} 3. Bb5 {[%emt 0:00:29][%cal Bf1b5,Bb5a4,Ba4b3][%mdl 32]} a6 {[%emt 0:00:13]} 4. Ba4 {[%emt 0:00:04]} Nf6 {[%emt 0:00:24]} 5. O-O {[%emt 0:00:08]} b5 {[%emt 0:00:29]} 6. Bb3 {[%emt 0:00:07]} Bc5 {[%emt 0:00:21]} 7. c3 {[%emt 0:00:35]} d6 {[%emt 0:00:35]} 8. d4 {[%emt 0:00:32]} Bb6 {[%emt 0:00:05]} 9. a4 {[%emt 0:00:40]} Bb7 {[%emt 0:01:40]} 10. Re1 {[%emt 0:01:03]} O-O {[%emt 0:02:21]} 11. Bg5 {[%emt 0:04:45][%cal Bc1g5,Bg5h4,Bh4g3][%mdl 32]} h6 {[%emt 0:03:40]} 12. Bh4 {[%emt 0:07:11]} exd4 {[%emt 0:01:48] C78: Ruy Lopez: Archangelsk and Möller Defences.} 13. cxd4 {[%emt 0:04:13]} g5 {[%emt 0:00:27]} 14. Bg3 {[%emt 0:01:47] 14.Nxg5 is more fashionable.} Re8 {[%emt 0:00:08] [#] The position is equal.} 15. Qd3 $146 {[%emt 0:20:32]} (15. d5 $11 Na5 16. Bc2) ({Predecessor:} 15. d5 Ne7 16. axb5 axb5 17. Rxa8 Bxa8 18. Nc3 Ng6 19. Bc2 Nh5 20. Nxb5 Nxg3 21. hxg3 {½-½ Sevian,S (2660)-Matlakov,M (2685) Speed Chess Super Swiss blitz 2020 (13)}) 15... Na5 {[%emt 0:26:12]} ({Black should try} 15... Nb4 $1 $15 16. Qc3 a5) 16. e5 {[%emt 0:13:20]} (16. Ba2 $1 $11 {remains equal.}) 16... Nxb3 $17 {[%emt 0:04:37]} 17. Qxb3 {[%emt 0:01:00]} Bxf3 {[%emt 0:11:34]} (17... g4 $17 18. exf6 gxf3) 18. Qxf3 $15 {[%emt 0:05:27]} Bxd4 {[%emt 0:00:08]} 19. axb5 {[%emt 0:03:54]} Bxb2 {[%emt 0:05:40]} (19... dxe5 $5 {[%cal Re5e4]} 20. Rxa6 Rxa6 21. bxa6 Re6 $17) 20. Rxa6 {[%emt 0:01:47]} Rxa6 {[%emt 0:02:12]} 21. bxa6 {[%emt 0:00:04] a7 is the strong threat.} dxe5 {[%emt 0:01:02]} (21... Bxe5 22. a7 Qa8 23. Bxe5 (23. Rxe5 dxe5 24. Qxf6 Re6 $11) 23... Qxf3 24. gxf3 $16) 22. Rd1 {[%emt 0:10:46]} Bd4 {[%emt 0:03:27]} 23. Nc3 {[%emt 0:07:31]} Kg7 {[%emt 0:06:49][%cal Oc7c6]} 24. Nb5 {[%emt 0:02:22] Strongly threatening a7.} Qd7 $2 {[%emt 0:15:16][%mdl 8192] [#]} (24... c6 $1 $11 25. Nxd4 (25. Qxc6 $2 {loses.} Bxf2+ {[%mdl 64] Discovered Attack} 26. Kxf2 Qxd1 $19) 25... exd4) 25. a7 $2 {[%emt 0:07:17]} Qxb5 $17 {[%emt 0:00:57]} 26. a8=Q {[%emt 0:00:06]} Rxa8 {[%emt 0:00:15]} 27. Qxa8 {[%emt 0:00:04]} Qe2 {[%emt 0:00:28][%cal Re2d1]} 28. Qf3 {[%emt 0:03:15]} Qxf3 {[%emt 0:01:32]} 29. gxf3 {[%emt 0:00:01][%cal Of3f4][%mdl 4096] Endgame KRB-KBN} c5 {[%emt 0:01:43]} 30. Rc1 {[%emt 0:00:33] [#]} (30. h4 $17) 30... Nd7 $1 $19 {[%emt 0:02:07]} 31. h4 {[%emt 0:00:48]} Kf6 {[%emt 0:00:49] aiming for ...Ke6.} 32. Kg2 $2 {[%emt 0:01:20] [#]} (32. Kf1 $17 {is a better defense.}) 32... Ke6 $1 {[%emt 0:00:10]} 33. hxg5 {[%emt 0:00:49]} (33. Kf1 $142 Kd5 34. Rb1) 33... hxg5 {[%emt 0:00:04][%cal Bh6g5,Bg5f4][%mdl 32]} 34. Bh2 {[%emt 0:00:15]} Nb6 {[%emt 0:01:22]} 35. f4 {[%emt 0:00:49]} gxf4 {[%emt 0:00:34]} (35... exf4 $2 {is the wrong capture.} 36. Bg1 $19) 36. f3 {[%emt 0:00:04]} c4 {[%emt 0:01:54][%cal Bc5c4,Bc4c3][%mdl 32]} 37. Bg1 {[%emt 0:00:50]} Kd5 {[%emt 0:00:34]} 38. Bxd4 {[%emt 0:00:21]} exd4 {[%emt 0:00:18][%cal Be5d4,Bd4d3,Bd3d2][%mdl 32] KR-KN. Black mates.} 39. Kf2 {[%emt 0:01:00]} c3 {[%emt 0:00:04]} 40. Ke2 {[%emt 0:00:00]} Kc4 {[%emt 0:00:00]} 41. Rh1 {[%emt 0:02:57]} d3+ {[%emt 0:00:13]} 42. Kd1 {[%emt 0:00:10]} Nd5 {[%emt 0:00:02]} 43. Kc1 {[%emt 0:01:08]} d2+ {[%emt 0:00:26]} 44. Kd1 {[%emt 0:00:13]} Kd3 {[%emt 0:00:39] Artfully played by Mkrtchyan.   Weighted Error Value: White=0.73/Black=0.24 (precise)} 0-1

[Event "European Women-ch 2023"]
[Site "Petrovac"]
[Date "2023.03.18"]
[Round "1.25"]
[White "Velikic, Adela"]
[Black "Tsotsonava, Elene"]
[Result "1-0"]
[ECO "E32"]
[WhiteElo "2329"]
[BlackElo "2030"]
[Annotator "TA"]
[PlyCount "71"]
[EventDate "2023.03.15"]
[EventType "swiss"]
[EventCountry "MNE"]
[SourceTitle "playchess.com"]
[Source "ChessBase"]
[SourceQuality "1"]
[TimeControl "40/5400+30:1800+30"]

{[%evp 13,71,0,0,0,0,0,6,-6,20,0,0,0,71,76,131,135,131,116,127,127,127,125,123,119,132,116,301,317,366,366,350,335,566,511,479,417,405,406,429,370,500,490,526,515,496,472,489,479,494,502,475,495,943,994,1000,977,1041,1013,1065,1027]} 1. d4 {[%emt 0:00:03]} Nf6 {[%emt 0:00:09]} 2. c4 {[%emt 0:00:06]} e6 {[%emt 0:00:04]} 3. Nc3 {[%emt 0:00:05]} Bb4 {[%emt 0:00:05]} 4. Qc2 {[%emt 0:00:05]} O-O {[%emt 0:00:21]} 5. e4 {[%emt 0:00:07]} d5 {[%emt 0:06:28]} 6. e5 {[%emt 0:00:12]} Ne4 {[%emt 0:00:23]} 7. Bd3 {[%emt 0:00:18]} c5 {[%emt 0:04:29]} 8. Nf3 {[%emt 0:00:18] E32: Nimzo-Indian: Classical (4 Qc2): 4...0-0.} cxd4 {[%emt 0:10:45]} 9. Nxd4 {[%emt 0:00:14]} Nd7 {[%emt 0:03:04]} 10. Bf4 {[%emt 0:00:34] The position is equal.} Ndc5 {[%emt 0:15:18]} (10... Qh4 {is more complex.} 11. g3 Qh5 12. O-O g5) 11. O-O {[%emt 0:04:40][%cal Rd3e4]} Bxc3 {[%emt 0:06:53]} 12. bxc3 {[%emt 0:00:17]} b6 {[%emt 0:27:17] [#]} (12... Bd7 $11) 13. Be2 $1 $16 {[%emt 0:06:41] [#] f3 is the strong threat.} f5 $146 {[%emt 0:08:51]} ({Black should play} 13... f6) ({Predecessor:} 13... h6 14. f3 Ng5 15. Rad1 Bb7 16. Nb5 Qe7 17. Nd6 Bc6 18. Rd4 Rfd8 19. Qd2 Rd7 20. cxd5 Bxd5 {0-1 Holt,C (2553)-Hakobyan,A (2602) Titled Tuesday intern op 01st Feb-B blitz 2022 (10)}) 14. f3 {[%emt 0:34:09] aiming for cxd5.} Ng5 {[%emt 0:00:33]} 15. Nc6 {[%emt 0:14:24][%cal Bd4c6,Bc6b4,Bb4d3][%mdl 32]} Qc7 {[%emt 0:02:37]} 16. Nb4 {[%emt 0:01:00]} Nf7 {[%emt 0:08:39]} 17. cxd5 {[%emt 0:00:56]} g5 {[%emt 0:00:26]} 18. d6 {[%emt 0:08:58]} Qd7 {[%emt 0:00:21]} 19. Be3 $36 {[%emt 0:06:36][%mdl 2048] And now Bd4 would win. Keeping Black busy. White is more active.} f4 $2 {[%emt 0:01:24]} (19... Nxe5 $16 20. Qd2 (20. Bxg5 a5 $14) 20... h6) 20. Bd4 $18 {[%emt 0:00:58]} a5 {[%emt 0:01:34]} 21. Nd3 {[%emt 0:00:24]} Ba6 {[%emt 0:00:42]} 22. Nf2 {[%emt 0:01:11]} (22. Nxc5 bxc5 23. Bf2 (23. Bxc5 Nxe5 24. Bxa6 Rxa6 $18) 23... Bb7 24. Bxc5 Nxe5 $18) 22... Bb7 $2 {[%emt 0:00:32]} (22... Qa4 23. Qxa4 Nxa4) 23. Rab1 {[%emt 0:03:06]} Qa4 {[%emt 0:00:29]} 24. Qxa4 {[%emt 0:08:45]} Nxa4 {[%emt 0:00:01]} 25. Bb5 {[%emt 0:02:09]} ({Not} 25. Bxb6 Nxc3 26. Bc4 Nxb1 27. Rxb1 Bd5 28. Bxd5 exd5 $16) 25... Nc5 {[%emt 0:00:04]} 26. Nd3 {[%emt 0:02:21]} Ba6 {[%emt 0:01:25]} 27. Bxc5 {[%emt 0:02:29][%mdl 64] [#] Remove Defender. White is clearly winning.} bxc5 {[%emt 0:00:04]} 28. Bxa6 {[%emt 0:00:46]} Rxa6 {[%emt 0:00:01]} 29. c4 {[%emt 0:00:54][%cal Bc3c4,Bc4c5][%mdl 32]} Rc6 {[%emt 0:01:25]} 30. Rb5 {[%emt 0:00:50]} Ra8 {[%emt 0:00:30]} 31. Re1 {[%emt 0:00:32]} ({Weaker is} 31. Rxc5 Rxc5 32. Nxc5 Nxe5 33. Nxe6 Re8 $18) (31. Nxc5 Nxe5 32. d7 Nf7 $18) 31... a4 {[%emt 0:00:35]} 32. Rxc5 {[%emt 0:01:29]} ({Much less strong is} 32. Nxc5 Nd8 33. Re4 Kf7 $18) 32... Rac8 {[%emt 0:00:24]} (32... Rxc5 $142 33. Nxc5 Nd8) 33. Rxc6 {[%emt 0:00:16]} Rxc6 {[%emt 0:00:02]} 34. c5 {[%emt 0:00:13]} Kg7 {[%emt 0:00:59]} 35. Re4 {[%emt 0:00:22]} Ra6 {[%emt 0:00:31]} 36. Rc4 {[%emt 0:00:27] White took control after the opening.   Weighted Error Value: White=0.09 (flawless) /Black=0.39} 1-0